bitfinex/quotes_SOLUSD_20241022
["timestamp","ask_amount","ask_price","bid_price","bid_amount"]
[1729558237636,6.0414,165.53,165.45,23.776884]
[1729558237831,6.0444,165.44,165.28,12.29761223]
[1729558238040,0.1,165.49,165.3,45.60568244]
[1729558238336,6.0437,165.47,165.3,45.60568244]
[1729558238937,6.0438,165.46,165.3,45.60568244]
[1729558239127,6.0438,165.46,165.35,43.776884]
[1729558239324,0.1,165.49,165.35,43.776884]
[1729558239920,0.1,165.51,165.35,43.776884]
[1729558240444,6.0434,165.47,165.35,43.776884]
[1729558240822,6.0422,165.5,165.35,43.776884]
[1729558241022,6.0437,165.47,165.35,43.776884]
[1729558241554,6.0434,165.47,165.35,43.776884]
[1729558242216,6.043,165.48,165.35,43.776884]
[1729558242642,6.0434,165.47,165.35,43.776884]
[1729558243044,0.1,165.53,165.35,43.776884]
[1729558243045,6.0443,165.45,165.35,43.776884]
[1729558243237,6.0443,165.45,165.35,20.0]
[1729558243631,6.0438,165.46,165.35,20.0]
[1729558243833,15.1057,165.5,165.35,20.0]
[1729558244259,15.1057,165.5,148.98,46.72654186]
[1729558244260,6.045,165.43,165.29,28.12017063]
[1729558244728,6.0445,165.44,165.35,23.776884]
[1729558245746,6.0445,165.44,165.36,20.0]
[1729558245951,6.0453,165.42,165.37,23.776884]
[1729558246331,6.0453,165.42,165.29,28.12017063]
[1729558246737,0.1,165.49,165.35,43.776884]
[1729558247052,6.0441,165.45,165.35,43.776884]
[1729558248356,0.2,165.5,165.35,43.776884]
[1729558248537,0.1,165.5,165.35,43.776884]
[1729558248734,0.2,165.5,165.35,43.776884]
[1729558248953,6.0445,165.44,165.35,43.776884]
[1729558252341,0.2,165.5,165.35,43.776884]
[1729558252536,6.0445,165.44,165.35,43.776884]
[1729558254351,11.99730528,197.3,165.32,28.72650643]
[1729558254352,6.5952,165.54,165.4,43.776884]
[1729558254551,6.0428,165.49,165.4,43.776884]
[1729558255960,6.3952,165.54,165.41,28.12017063]
[1729558256259,6.0423,165.5,165.42,43.776884]
[1729558256559,6.0419,165.51,165.42,43.776884]
[1729558257550,6.0432,165.48,165.42,23.776884]
[1729558257742,6.0432,165.48,165.4,20.0]
[1729558258539,6.0436,165.47,165.35,34.64827063]
[1729558258759,15.2048,165.51,165.35,34.64827063]
[1729558259343,0.1,165.51,165.35,34.64827063]
[1729558259642,6.0442,165.45,165.35,34.64827063]
[1729558259844,6.0442,165.45,165.36,23.776884]
[1729558260264,6.0442,165.45,165.35,6.5281]
[1729558260567,6.0442,165.45,165.34,15.0065]
[1729558260568,6.0452,165.42,165.34,15.0065]
[1729558261068,6.0441,165.45,165.34,15.0065]
[1729558261239,6.2886,165.49,165.34,15.0065]
[1729558261444,6.2886,165.49,165.34,43.12667063]
[1729558261744,6.0437,165.46,165.35,20.0]
[1729558261956,6.288,165.53,165.38,20.0]
[1729558262171,12.3292,165.53,165.4,48.12017063]
[1729558262366,12.3292,165.53,165.42,20.0]
[1729558262558,6.0422,165.51,165.44,20.0]
[1729558262961,12.3293,165.53,165.45,23.776884]
[1729558263263,6.0416,165.52,165.45,23.776884]
[1729558264766,6.288,165.53,165.44,20.0]
[1729558264949,6.0434,165.47,165.4,20.0]
[1729558265144,0.2,165.52,165.4,20.0]
[1729558265339,6.0441,165.46,165.35,26.3163]
[1729558265555,6.0441,165.46,165.35,6.3163]
[1729558265755,0.1,165.5,165.35,6.3163]
[1729558265960,6.0439,165.46,165.35,6.3163]
[1729558266166,6.0433,165.48,165.35,6.3163]
[1729558266364,15.1057,165.5,165.35,6.3163]
[1729558266365,15.1057,165.5,165.35,34.43647063]
[1729558266563,0.2,165.52,165.35,34.43647063]
[1729558266762,6.0428,165.49,165.35,34.43647063]
[1729558266967,6.0421,165.51,165.38,28.12017063]
[1729558267147,6.0421,165.51,165.39,23.776884]
[1729558267348,6.288,165.53,165.39,23.776884]
[1729558267556,6.0428,165.49,165.39,23.776884]
[1729558267853,6.288,165.53,165.43,23.776884]
[1729558268063,6.0434,165.47,165.36,28.12017063]
[1729558268268,6.0438,165.46,165.37,43.776884]
[1729558269980,6.0438,165.46,165.35,6.3163]
[1729558269981,15.2048,165.51,165.36,20.0]
[1729558270172,6.0438,165.46,165.36,20.0]
[1729558270973,0.1,165.49,165.35,6.3163]
[1729558271274,0.1,165.48,165.35,6.3163]
[1729558271471,6.0459,165.4,165.32,0.6063358]
[1729558271650,30.1,165.45,165.32,0.6063358]
[1729558271852,6.0467,165.38,165.32,0.6063358]
[1729558272177,15.1112,165.44,165.32,0.6063358]
[1729558272178,6.0462,165.4,165.32,0.6063358]
[1729558272974,6.0462,165.4,165.33,23.776884]
[1729558273363,6.0463,165.39,165.33,23.776884]
[1729558274674,30.1,165.45,165.32,0.6063358]
[1729558274675,6.0474,165.36,165.32,0.6063358]
[1729558274873,6.0485,165.33,165.32,0.6063358]
[1729558276149,36.0485,165.33,165.32,0.6063358]
[1729558276686,36.0485,165.33,165.15,0.6063358]
[1729558276687,6.5034,165.32,165.15,0.6063358]
[1729558276868,6.4034,165.32,165.15,0.6063358]
[1729558277064,30.0,165.31,165.15,6.9318231]
[1729558277267,30.0,165.31,165.17,28.22017063]
[1729558277490,22.5191,165.38,165.23,28.12017063]
[1729558277776,22.6191,165.38,165.21,22.6868]
[1729558277979,6.0481,165.35,165.21,22.6868]
[1729558278158,6.0481,165.35,165.23,20.0]
[1729558278355,6.0481,165.35,165.25,20.0]
[1729558278569,22.5191,165.38,165.27,20.0]
[1729558278770,6.0475,165.36,165.28,23.776884]
[1729558278985,6.0937,165.38,165.3,23.776884]
[1729558279286,6.0474,165.36,165.29,20.0]
[1729558279460,6.0474,165.36,165.25,20.0]
[1729558279661,6.0474,165.36,165.26,23.776884]
[1729558279862,6.0474,165.36,165.28,23.776884]
[1729558280077,6.0937,165.38,165.25,20.0]
[1729558280272,6.0937,165.38,165.22,20.0]
[1729558280273,6.0485,165.34,165.22,20.0]
[1729558280485,12.1406,165.38,165.22,20.0]
[1729558280677,6.047,165.37,165.25,20.0]
[1729558280858,6.0937,165.38,165.25,20.0]
[1729558281264,6.0937,165.38,165.25,23.776884]
[1729558281572,6.0475,165.36,165.29,23.776884]
[1729558281878,6.0937,165.38,165.29,23.776884]
[1729558282185,6.046,165.4,165.3,20.0]
[1729558282354,6.0463,165.39,165.31,23.776884]
[1729558282777,6.0471,165.37,165.24,28.12017063]
[1729558283077,6.4488,165.42,165.25,43.776884]
[1729558283078,6.0484,165.34,165.25,43.776884]
[1729558283284,6.0487,165.33,165.25,43.776884]
[1729558283582,6.049,165.32,165.25,23.776884]
[1729558284672,6.0485,165.34,165.25,23.776884]
[1729558284873,6.0485,165.33,165.25,23.776884]
[1729558285377,6.0489,165.32,165.25,23.776884]
[1729558285584,21.5623,165.42,165.28,20.0]
[1729558285791,6.0462,165.4,165.31,23.776884]
[1729558285955,21.5623,165.42,165.31,23.776884]
[1729558286161,6.047,165.37,165.31,23.776884]
[1729558286879,6.0463,165.39,165.32,20.0]
[1729558287573,6.0459,165.41,165.33,23.776884]
[1729558287882,6.0455,165.41,165.33,21.276884]
[1729558289184,6.4488,165.42,165.32,20.0]
[1729558289379,6.4488,165.42,165.27,6.0081]
[1729558289687,6.0463,165.39,165.29,51.89705463]
[1729558289874,6.0455,165.41,165.32,20.0]
[1729558290185,6.0459,165.4,165.32,20.0]
[1729558290382,6.0454,165.42,165.34,20.0]
[1729558290691,6.0456,165.41,165.34,20.0]
[1729558291381,6.0451,165.43,165.34,20.0]
[1729558291600,6.0448,165.44,165.35,23.776884]
[1729558291787,6.321,165.46,165.34,20.0]
[1729558292087,6.0463,165.4,165.32,20.0]
[1729558292267,6.0463,165.4,165.33,23.776884]
[1729558292459,6.0458,165.41,165.33,23.776884]
[1729558294683,15.1103,165.45,165.37,23.776884]
[1729558294684,6.0444,165.45,165.37,23.776884]
[1729558295267,6.0444,165.45,165.38,20.0]
[1729558295869,22.8676,165.51,165.4,20.0]
[1729558296076,6.043,165.48,165.41,23.776884]
[1729558296367,6.0417,165.52,165.44,20.0]
[1729558297268,6.2281,165.55,165.44,20.0]
[1729558297468,6.0416,165.52,165.44,20.0]
[1729558297767,6.2281,165.55,165.42,20.0]
[1729558297981,6.0434,165.47,165.39,23.776884]
[1729558298175,6.0434,165.47,165.4,20.0]
[1729558299776,15.102,165.54,165.4,20.0]
[1729558299968,15.102,165.54,165.37,34.17377063]
[1729558299969,6.2281,165.55,165.43,23.776884]
[1729558300176,6.0416,165.52,165.44,20.0]
[1729558300473,6.0408,165.54,165.46,20.0]
[1729558301188,6.3599,165.6,165.48,20.0]
[1729558301582,6.0404,165.55,165.48,20.0]
[1729558302899,6.04,165.57,165.48,20.0]
[1729558303080,6.0401,165.56,165.48,20.0]
[1729558304064,6.041,165.54,165.48,20.0]
[1729558304272,15.0975,165.59,165.47,20.0]
[1729558304467,15.0984,165.58,165.45,20.0]
[1729558304689,6.0414,165.53,165.45,20.0]
[1729558304986,6.0421,165.51,165.45,20.0]
[1729558305192,6.0418,165.52,165.45,20.0]
[1729558305563,15.1011,165.55,165.44,16.0184]
[1729558305779,15.1011,165.55,165.43,20.0]
[1729558306699,6.0427,165.49,165.4,16.0064]
[1729558307415,6.0427,165.49,165.41,23.776884]
[1729558307978,6.0432,165.48,165.41,20.0]
[1729558308586,16.4688,165.54,165.41,20.0]
[1729558308775,6.0436,165.47,165.41,20.0]
[1729558308975,6.0438,165.46,165.38,6.3919]
[1729558309189,21.5894,165.51,165.38,6.3919]
[1729558309898,6.0434,165.47,165.38,6.3919]
[1729558310195,6.0434,165.47,165.39,43.776884]
[1729558310783,6.4846,165.51,165.39,20.0]
[1729558310983,6.6846,165.51,165.36,16.0064]
[1729558311280,6.4846,165.51,165.36,16.0064]
[1729558311484,6.0437,165.47,165.36,16.0064]
[1729558311900,6.0437,165.46,165.36,16.0064]
[1729558312202,6.4846,165.51,165.37,23.776884]
[1729558312403,6.0422,165.5,165.36,16.0064]
[1729558312700,6.0444,165.44,165.36,16.0064]
[1729558313282,15.1066,165.49,165.36,16.0064]
[1729558313485,6.0448,165.44,165.36,16.0064]
[1729558313685,6.0448,165.44,165.37,20.0]
[1729558313884,6.0448,165.44,165.35,20.0]
[1729558314133,6.0448,165.43,165.37,20.0]
[1729558314897,6.0444,165.45,165.37,20.0]
[1729558315685,6.5846,165.51,165.34,6.3919]
[1729558315686,23.976884,165.5,165.34,6.3919]
[1729558315901,39.799684,165.48,165.33,20.0]
[1729558316099,6.0454,165.42,165.33,20.0]
[1729558317001,15.1093,165.46,165.34,23.776884]
[1729558317185,6.0444,165.45,165.37,20.0]
[1729558317715,6.0445,165.44,165.37,20.0]
[1729558318276,6.0451,165.43,165.37,20.0]
[1729558318483,15.109,165.47,165.33,43.776884]
[1729558318683,6.0452,165.42,165.33,43.776884]
[1729558322010,6.2701,165.46,165.33,20.0]
[1729558322203,6.0441,165.45,165.32,15.9291]
[1729558322403,6.2701,165.46,165.32,15.9291]
[1729558322983,6.0441,165.45,165.32,15.9291]
[1729558323181,6.2701,165.46,165.33,23.776884]
[1729558323408,6.0467,165.38,165.3,6.0526]
[1729558323595,16.635,165.39,165.27,16.0554]
[1729558324115,6.0466,165.38,165.27,16.0554]
[1729558324498,30.0,165.37,165.27,16.0554]
[1729558324804,6.0474,165.36,165.26,6.224]
[1729558324983,6.0485,165.33,165.26,6.224]
[1729558325180,36.0468,165.37,165.2,6.32268025]
[1729558325181,15.1185,165.36,165.2,6.32268025]
[1729558325385,36.0491,165.32,165.18,21.7082]
[1729558325583,30.0,165.32,165.23,28.12017063]
[1729558326503,6.0468,165.37,165.24,20.0]
[1729558326694,6.0468,165.37,165.18,29.11523886]
[1729558326695,6.0468,165.37,165.18,49.82837063]
[1729558326903,30.0,165.31,165.18,21.7082]
[1729558327810,6.0499,165.3,165.18,21.7082]
[1729558328194,6.0499,165.3,165.22,20.0]
[1729558328512,6.0499,165.3,165.2,20.0]
[1729558328894,6.0499,165.3,165.22,20.0]
[1729558329707,6.0499,165.3,165.2,20.0]
[1729558329910,6.0499,165.3,165.22,20.0]
[1729558330814,30.0,165.31,165.22,20.0]
[1729558331012,36.0502,165.29,165.22,20.0]
[1729558331508,30.0,165.29,165.19,20.0]
[1729558331712,6.0503,165.28,165.19,20.0]
[1729558332096,6.0507,165.27,165.19,20.0]
[1729558333314,6.051,165.27,165.19,20.0]
[1729558334027,6.0496,165.3,165.21,20.0]
[1729558334235,23.776884,165.34,165.22,23.776884]
[1729558334401,6.0501,165.29,165.22,23.776884]
[1729558335403,44.947784,165.32,165.19,20.0]
[1729558335621,6.3228,165.31,165.19,20.0]
[1729558335807,21.4459,165.31,165.19,20.0]
[1729558336124,23.776884,165.3,165.16,20.0]
[1729558336420,23.776884,165.3,165.15,6.93141358]
[1729558336421,20.0,165.29,165.15,6.93141358]
[1729558336638,6.0522,165.23,165.15,6.93141358]
[1729558336929,6.0519,165.24,165.15,6.93141358]
[1729558337421,6.0519,165.24,165.16,23.776884]
[1729558337622,6.05,165.29,165.19,20.0]
[1729558337806,6.3228,165.31,165.2,23.776884]
[1729558338002,6.3228,165.31,165.21,20.0]
[1729558338203,6.0496,165.3,165.23,20.0]
[1729558339211,6.3228,165.31,165.24,23.776884]
[1729558339615,6.0485,165.33,165.25,20.0]
[1729558339818,6.0488,165.32,165.25,20.0]
[1729558340427,6.0496,165.3,165.25,20.0]
[1729558340616,6.0496,165.3,165.24,20.0]
[1729558341320,6.0491,165.32,165.24,20.0]
[1729558341517,6.0493,165.31,165.24,20.0]
[1729558342108,6.0497,165.3,165.24,20.0]
[1729558342314,30.3425,165.33,165.19,15.2599]
[1729558342517,15.124,165.3,165.15,43.98640643]
[1729558343132,6.0514,165.26,165.15,43.98640643]
[1729558343625,6.0488,165.32,165.15,15.8662358]
[1729558343832,20.0,165.33,165.18,20.0]
[1729558344035,6.0503,165.28,165.18,20.0]
[1729558344414,6.0503,165.28,165.19,23.776884]
[1729558344824,6.0503,165.28,165.21,23.776884]
[1729558345023,6.0496,165.3,165.23,23.776884]
[1729558346020,6.0496,165.3,165.24,20.0]
[1729558346913,6.0492,165.32,165.24,20.0]
[1729558347111,6.0492,165.32,165.25,23.776884]
[1729558347415,6.0485,165.33,165.26,20.0]
[1729558347916,15.1203,165.34,165.23,15.9971]
[1729558348103,6.0497,165.3,165.24,43.776884]
[1729558348310,6.0507,165.27,165.2,20.0]
[1729558348726,15.1217,165.33,165.2,20.0]
[1729558349227,6.0499,165.3,165.2,20.0]
[1729558349534,22.6097,165.35,165.22,20.0]
[1729558349716,6.0496,165.3,165.23,23.776884]
[1729558350312,6.0489,165.32,165.23,23.776884]
[1729558350539,22.6097,165.35,165.25,23.776884]
[1729558350840,6.049,165.32,165.25,23.776884]
[1729558351012,22.6097,165.35,165.21,20.0]
[1729558351211,6.0499,165.3,165.23,20.0]
[1729558352126,6.0502,165.29,165.23,20.0]
[1729558352318,15.1203,165.34,165.23,20.0]
[1729558352521,6.0481,165.34,165.25,20.0]
[1729558352827,22.9585,165.39,165.3,23.776884]
[1729558353024,6.0467,165.38,165.3,23.776884]
[1729558353210,6.2975,165.39,165.3,23.776884]
[1729558353408,16.0407,165.43,165.33,20.0]
[1729558353631,6.0464,165.39,165.33,20.0]
[1729558354036,16.0407,165.43,165.33,20.0]
[1729558354326,16.0407,165.43,165.34,23.776884]
[1729558354535,6.166,165.44,165.34,23.776884]
[1729558354734,6.0452,165.42,165.34,23.776884]
[1729558354931,6.0456,165.41,165.34,23.776884]
[1729558355233,6.166,165.44,165.32,20.0]
[1729558355545,6.0458,165.41,165.34,20.0]
[1729558355837,6.0465,165.39,165.31,20.0]
[1729558356213,6.0465,165.39,165.32,23.776884]
[1729558356408,6.166,165.44,165.32,23.776884]
[1729558356409,6.0458,165.41,165.33,20.0]
[1729558356630,6.166,165.44,165.34,23.776884]
[1729558356914,6.0456,165.41,165.34,23.776884]
[1729558359335,6.166,165.44,165.34,23.776884]
[1729558359541,6.166,165.44,165.35,20.0]
[1729558359745,6.0451,165.43,165.35,20.0]
[1729558360235,15.8903,165.47,165.38,23.776884]
[1729558360536,21.934,165.47,165.38,23.776884]
[1729558360737,6.0449,165.43,165.37,20.0]
[1729558360935,6.0454,165.42,165.37,20.0]
[1729558362229,6.1906,165.48,165.37,20.0]
[1729558362923,15.1084,165.47,165.36,15.7117]
[1729558363126,6.0461,165.4,165.31,22.8779]
[1729558364129,6.0463,165.39,165.31,22.8779]
[1729558364439,6.0463,165.39,165.32,23.776884]
[1729558365021,6.0463,165.39,165.33,20.0]
[1729558365941,15.1103,165.45,165.33,20.0]
[1729558366141,6.0459,165.4,165.33,20.0]
[1729558367322,6.0463,165.39,165.33,20.0]
[1729558368739,43.776884,165.47,165.34,23.776884]
[1729558368925,43.776884,165.47,165.35,20.0]
[1729558369133,43.876884,165.47,165.31,22.8779]
[1729558369431,6.0466,165.39,165.32,43.776884]
[1729558369632,6.047,165.38,165.32,43.776884]
[1729558370245,6.047,165.38,165.32,23.776884]
[1729558370542,15.1146,165.42,165.27,34.67077063]
[1729558370543,6.1903,165.4,165.28,23.776884]
[1729558370747,6.0472,165.37,165.28,23.776884]
[1729558371843,6.0472,165.37,165.3,23.776884]
[1729558372026,6.0466,165.39,165.3,23.776884]
[1729558372225,6.0463,165.39,165.3,23.776884]
[1729558372426,6.0467,165.38,165.3,23.776884]
[1729558374243,15.1146,165.42,165.32,23.776884]
[1729558374629,6.0463,165.39,165.32,23.776884]
[1729558375362,15.1146,165.42,165.32,23.776884]
[1729558375540,6.0459,165.4,165.32,23.776884]
[1729558376950,6.0448,165.43,165.33,20.0]
[1729558377152,6.2189,165.44,165.34,23.776884]
[1729558377349,6.0456,165.41,165.34,23.776884]
[1729558379627,6.0461,165.4,165.34,23.776884]
[1729558379831,6.0465,165.39,165.31,20.0]
[1729558380040,6.0465,165.39,165.32,23.776884]
[1729558380256,6.0465,165.39,165.33,20.0]
[1729558382753,6.0477,165.36,165.28,20.0]
[1729558382956,6.047,165.37,165.28,20.0]
[1729558383265,15.1139,165.41,165.27,49.88467063]
[1729558383468,6.0474,165.36,165.27,49.88467063]
[1729558384166,6.0474,165.36,165.28,23.776884]
[1729558384357,6.0474,165.36,165.28,41.35944108]
[1729558384657,6.0474,165.36,165.29,20.0]
[1729558384829,6.0474,165.36,165.31,20.0]
[1729558385730,6.0471,165.37,165.3,23.776884]
[1729558385935,6.0471,165.37,165.31,20.0]
[1729558386537,6.0466,165.39,165.31,20.0]
[1729558386738,6.0466,165.39,165.32,23.776884]
[1729558386935,20.0,165.43,165.32,23.776884]
[1729558387142,6.0459,165.41,165.32,23.776884]
[1729558387359,6.0462,165.4,165.32,23.776884]
[1729558389659,6.0462,165.4,165.33,20.0]
[1729558390154,6.0455,165.42,165.33,20.0]
[1729558390457,6.0439,165.46,165.38,17.58255708]
[1729558390868,6.1407,165.48,165.4,17.58255708]
[1729558391046,6.0429,165.49,165.41,20.0]
[1729558391363,6.4449,165.53,165.42,17.58255708]
[1729558391555,6.0422,165.51,165.43,20.0]
[1729558392063,6.4449,165.53,165.43,20.0]
[1729558393364,6.0423,165.5,165.43,20.0]
[1729558397465,6.4449,165.53,165.41,23.776884]
[1729558397871,6.4449,165.53,165.39,28.08784139]
[1729558397872,23.776884,165.52,165.36,48.08784139]
[1729558398447,6.0437,165.46,165.36,48.08784139]
[1729558399170,6.0437,165.46,165.38,20.0]
[1729558399363,6.0426,165.5,165.4,20.0]
[1729558399570,6.4449,165.53,165.42,20.0]
[1729558399741,6.042,165.51,165.42,20.0]
[1729558400553,6.0423,165.5,165.42,20.0]
[1729558401067,23.776884,165.52,165.37,20.0]
[1729558401364,6.0422,165.51,165.4,23.776884]
[1729558401659,6.4449,165.53,165.42,23.776884]
[1729558401862,6.4449,165.53,165.41,20.0]
[1729558402075,6.043,165.49,165.41,20.0]
[1729558402770,6.043,165.49,165.4,20.0]
[1729558403171,6.4449,165.53,165.35,23.1109]
[1729558403172,6.0439,165.46,165.35,23.1109]
[1729558403369,6.0439,165.46,165.36,23.776884]
[1729558403876,23.776884,165.5,165.36,23.776884]
[1729558404051,6.0441,165.45,165.36,23.776884]
[1729558405169,23.776884,165.5,165.36,23.776884]
[1729558405348,15.1048,165.51,165.35,23.1109]
[1729558405349,6.0432,165.48,165.38,23.776884]
[1729558405754,6.0432,165.48,165.39,20.0]
[1729558408455,6.4449,165.53,165.35,23.1109]
[1729558408456,6.0442,165.45,165.36,20.0]
[1729558408656,30.208,165.52,165.36,20.0]
[1729558408866,6.0461,165.4,165.35,16.6283]
[1729558409055,23.776884,165.44,165.35,16.6283]
[1729558409256,6.0456,165.41,165.35,16.6283]
[1729558411375,6.0455,165.42,165.35,16.6283]
[1729558411578,6.0456,165.41,165.35,16.6283]
[1729558412368,23.776884,165.44,165.32,20.0]
[1729558412884,6.0455,165.41,165.32,20.0]
[1729558413266,6.0447,165.44,165.34,20.0]
[1729558414211,6.0441,165.45,165.34,20.0]
[1729558414487,15.1072,165.49,165.38,36.1055]
[1729558414667,21.7773,165.52,165.38,36.1055]
[1729558414979,6.043,165.48,165.38,36.1055]
[1729558416876,6.0439,165.46,165.38,36.1055]
[1729558417372,38.881684,165.51,165.38,36.1055]
[1729558417773,6.0434,165.47,165.38,36.1055]
[1729558417971,6.0422,165.5,165.4,20.0]
[1729558418278,6.0427,165.49,165.4,20.0]
[1729558420295,6.0423,165.5,165.4,20.0]
[1729558420893,6.0413,165.53,165.4,20.0]
[1729558421092,15.3947,165.56,165.43,20.0]
[1729558421395,6.0408,165.54,165.43,20.0]
[1729558421595,6.0405,165.55,165.45,28.0966962]
[1729558421786,6.0405,165.55,165.46,20.0]
[1729558421990,6.0399,165.57,165.47,6.2265]
[1729558422171,21.8412,165.61,165.48,20.0]
[1729558422375,6.0404,165.55,165.48,20.0]
[1729558425170,23.776884,165.54,165.46,20.0]
[1729558425373,6.0415,165.53,165.45,20.0]
[1729558425679,6.0417,165.52,165.45,20.0]
[1729558425871,6.0419,165.51,165.45,20.0]
[1729558426299,6.0419,165.51,165.44,15.9431]
[1729558426499,23.776884,165.52,165.44,15.9431]
[1729558426995,29.818384,165.52,165.44,15.9431]
[1729558427291,6.0423,165.5,165.44,15.9431]
[1729558427479,46.408784,165.53,165.4,15.5123]
[1729558427897,6.043,165.48,165.4,15.5123]
[1729558428189,6.0415,165.52,165.4,15.5123]
[1729558428493,23.776884,165.48,165.4,15.5123]
[1729558428701,23.776884,165.48,165.41,20.0]
[1729558428899,23.776884,165.51,165.42,28.0966962]
[1729558429087,23.776884,165.51,165.43,20.0]
[1729558429399,6.0411,165.54,165.43,20.0]
[1729558432101,29.816984,165.56,165.46,20.0]
[1729558432274,6.0423,165.5,165.46,20.0]
[1729558432475,23.776884,165.49,165.4,15.5123]
[1729558433796,23.776884,165.49,165.41,20.0]
[1729558435801,6.0408,165.54,165.41,20.0]
[1729558435981,23.776884,165.56,165.41,48.0966962]
[1729558436183,6.0131,165.57,165.41,48.0966962]
[1729558437000,6.0401,165.56,165.45,20.0]
[1729558437504,6.0405,165.55,165.45,20.0]
[1729558438104,6.0131,165.57,165.45,20.0]
[1729558438294,6.0409,165.54,165.45,20.0]
[1729558439090,23.776884,165.53,165.45,20.0]
[1729558439290,6.0415,165.52,165.42,20.0]
[1729558439601,23.776884,165.53,165.42,20.0]
[1729558440396,6.0422,165.51,165.42,20.0]
[1729558440611,23.776884,165.49,165.42,20.0]
[1729558441093,6.0412,165.53,165.42,20.0]
[1729558441295,15.1005,165.56,165.42,20.0]
[1729558441296,23.776884,165.55,165.42,20.0]
[1729558441703,23.776884,165.53,165.42,20.0]
[1729558442408,29.818184,165.53,165.42,20.0]
[1729558442786,23.776884,165.51,165.41,20.0]
[1729558443190,23.776884,165.51,165.44,20.0]
[1729558446297,23.776884,165.51,165.44,17.54844404]
[1729558446907,23.776884,165.51,165.45,20.0]
[1729558448605,23.776884,165.51,165.42,17.54844404]
[1729558448796,23.776884,165.51,165.43,20.0]
[1729558455714,23.776884,165.51,165.45,20.0]
[1729558455890,6.0131,165.57,165.41,20.0]
[1729558455891,6.0131,165.57,165.47,20.0]
[1729558456095,6.0401,165.56,165.49,20.0]
[1729558456601,6.0404,165.55,165.47,20.0]
[1729558456913,6.0131,165.57,165.47,20.0]
[1729558457114,6.0131,165.57,165.43,20.0]
[1729558457321,23.776884,165.52,165.43,20.0]
[1729558458705,23.776884,165.52,165.44,17.54844404]
[1729558459019,23.776884,165.52,165.41,20.0]
[1729558459020,23.776884,165.52,165.47,20.0]
[1729558459710,6.1767,165.61,165.52,20.0]
[1729558459913,22.2173,165.62,165.54,20.0]
[1729558460119,6.068,165.65,165.55,17.54844404]
[1729558460307,12.1048,165.65,165.56,20.0]
[1729558461021,6.0373,165.64,165.56,20.0]
[1729558462105,23.776884,165.63,165.56,20.0]
[1729558462615,23.776884,165.64,165.57,17.54844404]
[1729558462807,6.0358,165.68,165.6,20.0]
[1729558463223,3.13108445,165.7,165.62,20.0]
[1729558463224,9.16618445,165.7,165.62,20.0]
[1729558463520,9.16618445,165.7,165.64,20.0]
[1729558463521,3.13108445,165.7,165.64,20.0]
[1729558465113,3.13108445,165.7,165.66,20.0]
[1729558465301,3.13108445,165.7,165.67,17.54844404]
[1729558466305,3.13108445,165.7,165.65,20.0]
[1729558470723,0.6063358,165.73,165.65,20.0]
[1729558471018,23.776884,165.72,165.65,20.0]